Cogmind - Beta 13 @@@ ROGUE MODE // 2024.07.08 @ 02:21:59 Player: Duduxx Result: Destroyed by YI-UF0 with YI-UF0's Doublenader Performance ------------- Evolutions (0) 0 Regions Visited (2) 400 Robots Destroyed (10) 50 Value Destroyed (187) 187 Prototype IDs (0) 0 Alien Tech Used (0) 0 Bonus (0) 0 TOTAL SCORE: 637 Bonus ------- None Cogmind --------- Core Integrity 0/250 Matter 250/300 Energy 94/160 System Corruption 0% Temperature Cool (0) Movement Treading (400) Ox3 Location -10/Mines Parts ------- > --- POWER (1) -------- Light Nuclear Core > --- PROPULSION (2) --- Light Treads Light Treads > --- UTILITY (2) ------ Cargo Storage Unit > --- WEAPON (2) ------- Beam Cannon > --- INVENTORY (30) --- Advanced Treads Compact Wheel Seismic Detector Light Armor Plating Improved Light Armor Plating Field Laser Beam Cannon Light Cannon Peak State ------------ > --- POWER ------------ Light Nuclear Core > --- PROPULSION ------- Light Treads Light Treads > --- UTILITY ---------- Cargo Storage Unit > --- WEAPON ----------- Beam Cannon > --- INVENTORY -------- Advanced Treads Compact Wheel Seismic Detector Light Armor Plating Improved Light Armor Plating Field Laser Beam Cannon Light Cannon [Rating: 9] Favorites ----------- Power Ion Engine Engine Ion Engine Power Core Light Nuclear Core Propulsion Light Treads Treads Light Treads Wheel Compact Wheel Utility Cargo Storage Unit Device Seismic Detector Storage Cargo Storage Unit Weapon Assault Rifle Energy Gun Small Laser Energy Cannon Beam Cannon Ballistic Gun Assault Rifle Build | -11 -10 -10 ------- Run | Yrd Mat Min Slots Evolved . | . . . Power . | . . . Propulsion . | . . . Utility . | . . . Weapon . | . . . Parts Attached 14 | 6 6 2 Power 3 | 1 1 1 Engine 2 | 1 1 . Core 1 | . . 1 Reactor . | . . . Propulsion 4 | 2 2 . Treads 2 | . 2 . Leg . | . . . Wheel 2 | 2 . . Hover . | . . . Flight . | . . . Utility 3 | 1 2 . Device 1 | . 1 . Storage 2 | 1 1 . Processor . | . . . Hackware . | . . . Protection . | . . . Artifact . | . . . Weapon 4 | 2 1 1 Energy Gun 2 | 2 . . Energy Cannon 1 | . . 1 Ballistic Gun 1 | . 1 . Ballistic Cannon . | . . . Launcher . | . . . Special Weapon . | . . . Impact Weapon . | . . . Slashing Weapon . | . . . Piercing Weapon . | . . . Special Melee Weapon . | . . . Unidentified Prototypes . | . . . Parts Lost 6 | . 4 2 Power 2 | . 1 1 Propulsion 2 | . 2 . Utility . | . . . Weapon 2 | . 1 1 Highest Loss Streak 3 | . 3 2 To Critical Strikes . | . . . Average Slot Usage (%) 82 | . 86 79 Engine 14 | . 14 14 Treads 17 | . 2 28 Wheel 9 | . 23 . Device 2 | . 5 . Storage 14 | . 14 14 Energy Gun 6 | . 16 . Energy Cannon 5 | . . 8 Ballistic Gun 12 | . 9 14 Naked Turns . | . . . Heaviest Build 150 | 12 148 150 Greatest Support 40 | 26 40 40 Greatest Overweight (x) 9 | 3 9 3 Average Overweight (x) 1 | 1 1 3 Largest Inventory Capacity 30 | 8 30 30 Average Capacity 23 | 7 18 30 Most Carried 9 | 4 9 9 Average Carried 6 | 2 6 8 Final Capacity 30 | 8 30 30 Final Carried 8 | 4 6 8 Class Distribution -------------------- 72% | Hauler-Mutant 27% | Mutant Dominant Class ---------------- Mutant | -10/Materials Hauler-Mutant | -10/Mines Resources | -11 -10 -10 ----------- Run | Yrd Mat Min Matter Collected 333 | 180 109 44 Remotely . | . . . Salvage Created 355 | . 314 41 Parts 18 | . 14 4 Haulers Intercepted . | . . . Recyclers Shooed 1 | . 1 . Parts Field Recycled . | . . . Retrieved Matter . | . . . Parts Self-Destructed . | . . . Prevented . | . . . Kills | -11 -10 -10 ------- Run | Yrd Mat Min Combat Hostiles Destroyed 7 | . 4 3 Guns 7 | . 4 3 Classes Destroyed 4 | . 3 1 Worker 2 | . 2 . Recycler 1 | . 1 . Swarmer 3 | . . 3 Grunt 4 | . 4 . Best Kill Streak 5 | . 5 3 Combat Bots Only 3 | . 2 3 Max Kills in Single Turn 1 | . 1 1 Gunslinging . | . . . Exploded . | . . . Melee . | . . . Uniques/NPCs Destroyed . | . . . Combat | -11 -10 -10 -------- Run | Yrd Mat Min Hostile Shots Fired 109 | . 79 30 Missed 28 | . 19 9 Damage Taken 978 | 4 634 340 Core 252 | . 194 58 Absorbed by Shields . | . . . Core Remaining (%) 100 | 100 . . Volleys Fired 36 | . 25 11 Largest 2 | . 2 2 Hottest 80 | . 60 80 Shots Fired 58 | . 43 15 Gun 53 | . 43 10 Cannon 5 | . . 5 Launcher . | . . . Special . | . . . Kinetic 28 | . 18 10 Thermal 30 | . 25 5 Explosive . | . . . Electromagnetic . | . . . Robot Hit Streak 9 | . 9 8 Robot Miss Streak 5 | . 5 2 Penetration Max . | . . . Secondary Targets 1 | . 1 . Max Gunslinging Chain 1 | . 1 . Shots Hit Robots 34 | . 24 10 Core Hits 15 | 1 11 3 Critical Kills . | . . . Critical Parts Destroyed . | . . . Critical Strikes . | . . . Melee Attacks . | . . . Impact . | . . . Slashing . | . . . Piercing . | . . . Sneak Attacks . | . . . Combat Hostiles . | . . . Follow-up Attacks . | . . . Damage Inflicted 451 | 9 311 131 Guns 373 | . 295 78 Cannons 53 | . . 53 Explosions . | . . . Melee . | . . . Ramming 25 | 9 16 . Kinetic 213 | . 135 78 Thermal 213 | . 160 53 Explosive . | . . . Electromagnetic . | . . . Impact . | . . . Slashing . | . . . Piercing . | . . . Highest Corruption . | . . . Average Corruption . | . . . Corruption Purged . | . . . Corruption Blocked . | . . . Overload Shots . | . . . Overflow Damage . | . . . Projectiles . | . . . Explosions . | . . . Melee . | . . . Knockbacks . | . . . Impact . | . . . Kinetic . | . . . Secondary . | . . . Self-Inflicted Damage 11 | 4 7 . Shots . | . . . Rammed 4 | 1 3 . Targets Rammed 4 | 1 3 . Kicked . | . . . Crushed . | . . . Highest Temperature 132 | . 132 72 Average Temperature 59 | . 64 35 Received Heat Transfer 234 | . 234 . Siege Activations . | . . . Robots Corrupted . | . . . Combat Hostiles . | . . . Parts Fried . | . . . Impact Corruptions . | . . . Robots Melted . | . . . Combat Hostiles . | . . . Parts Melted 1 | . 1 . Heat Transferred 486 | . 375 111 Parts Sabotaged . | . . . Parts Stolen . | . . . Parts Stripped . | . . . Power Chain Reactions . | . . . Alert | -11 -10 -10 ------- Run | Yrd Mat Min Peak Influence 120 | . 120 104 Initial 34 | . . 34 Average 48 | . 48 55 Maximum Alert Level . | . . . Low Security (%) 100 | 100 100 100 Level 1 . | . . . Level 2 . | . . . Level 3 . | . . . Level 4 . | . . . Level 5 . | . . . High Security . | . . . Max Security . | . . . Squads Dispatched 2 | . 1 1 Investigation 2 | . 1 1 Extermination . | . . . Reinforcement . | . . . Assault . | . . . Garrison . | . . . Intercept . | . . . Searches Triggered . | . . . Construction Impeded . | . . . Haulers Reinforced . | . . . Active Scanning Responses . | . . . Cargo Convoy Interrupts . | . . . Stealth | -11 -10 -10 --------- Run | Yrd Mat Min Distress Signals 1 | . 1 . Communications Jammed . | . . . Distress Signals . | . . . Times Spotted 14 | . 10 4 Peak Tracking Total 4 | . 4 3 Tactical Retreats . | . . . Traps | -11 -10 -10 ------- Run | Yrd Mat Min Traps Triggered 1 | . 1 . Indirectly . | . . . Trap Hack Attempts . | . . . Triggered . | . . . Disarmed . | . . . Reprogrammed . | . . . Reused . | . . . Traps Extracted . | . . . Installed . | . . . Triggered . | . . . Machines | -11 -10 -10 ---------- Run | Yrd Mat Min Machines Disabled . | . . . Max in Single Turn . | . . . Machines Repaired . | . . . Machines Dismantled . | . . . Machines Sabotaged . | . . . Overloaded Fab Kills . | . . . Hacking | -11 -10 -10 --------- Run | Yrd Mat Min Machines Accessed 3 | . 2 1 Terminals 1 | . 1 . Fabricators . | . . . Repair Stations . | . . . Recycling Units 1 | . 1 . Scanalyzers . | . . . Garrison Access . | . . . Total Hacks 5 | . 4 1 Successful 2 | . 1 1 Failed 3 | . 3 . Catastrophic . | . . . Database Lockouts . | . . . Manual . | . . . Terminals 3 | . 3 . Fabricators . | . . . Repair Stations . | . . . Recycling Units 1 | . 1 . Scanalyzers . | . . . Garrison Access . | . . . Terminal Hacks 1 | . . 1 Open Door 1 | . . 1 Fabricator Hacks . | . . . Repair Station Hacks . | . . . Recycling Unit Hacks 1 | . 1 . Report Inventory 1 | . 1 . Scanalyzer . | . . . Garrison Access Hacks . | . . . Unauthorized Hacks . | . . . Terminals . | . . . Fabricators . | . . . Repair Stations . | . . . Recycling Units . | . . . Scanalyzers . | . . . Garrison Access . | . . . Data Cores Recovered . | . . . Used . | . . . Hacking Detections 1 | . 1 . Full Trace Events 1 | . 1 . Feedback Events . | . . . Feedback Blocked . | . . . Robot Schematics Acquired . | . . . Robots Built . | . . . Authchips . | . . . Time . | . . . Total Robot Build Rating . | . . . Part Schematics Acquired . | . . . Parts Built . | . . . Authchips . | . . . Time . | . . . Total Part Build Rating . | . . . Parts Repaired . | . . . Time . | . . . Parts Recycled . | . . . Recycled Matter . | . . . Retrieved Matter . | . . . Retrieved Components . | . . . Parts Scanalyzed . | . . . Part Schematics Acquired . | . . . Parts Damaged . | . . . Bothacking | -11 -10 -10 ------------ Run | Yrd Mat Min Used RIF Installer . | . . . Robots Hacked . | . . . Non-combat . | . . . Combat . | . . . Robot Hacks Applied . | . . . Relay Couplers Released . | . . . Fabnet Peak Effective % . | . . . Robots Rewired . | . . . Allies Hacked . | . . . Hacks Repelled . | . . . Allies | -11 -10 -10 -------- Run | Yrd Mat Min Total Allies . | . . . Largest Group . | . . . Highest-Rated Group . | . . . Highest-Rated Ally . | . . . Total Orders . | . . . Ally Attacks . | . . . Total Damage . | . . . Kills . | . . . Allies Corrupted . | . . . Allies Melted . | . . . Intel | -11 -10 -10 ------- Run | Yrd Mat Min Robot Analysis Total . | . . . Derelict Logs Recovered . | . . . Drone Launches . | . . . Drone Recoveries . | . . . Exploration | -11 -10 -10 ------------- Run | Yrd Mat Min Turns Passed 918 | 73 337 508 Spaces Moved 376 | 46 211 119 Core 22 | 22 . . Treads 125 | . 6 119 Legs . | . . . Wheels 229 | 24 205 . Hover . | . . . Flight . | . . . Fastest Speed 50 | 50 90 400 Average Speed 209 | 128 120 400 Slowest Speed 400 | 200 400 400 Overloaded Moves . | . . . Propulsion Burnouts . | . . . Robots Hopped . | . . . Cave-ins Triggered . | . . . Exploration Rate (%) 27 | 3 40 40 Regions Visited 2 Branch Regions 1 Pre-discovered Areas . | . . . Known Exits Taken . | . . . Unknown Exits Taken 2 | 1 1 . Scrap Searched . | . . . Spaces Dug . | . . . Terrain Destroyed . | . . . Melee . | . . . Projectile . | . . . AOE . | . . . Terrain Rammed . | . . . Walls Destroyed . | . . . Machines Disabled . | . . . Actions | -11 -10 -10 --------- Run | Yrd Mat Min Total 446 | 56 254 136 Wait . | . . . Move 374 | 45 210 119 Hop . | . . . Pick Up 14 | 4 6 4 Fast Attach 8 | 6 2 . Attach 6 | . 4 2 Detach 1 | . 1 . Swap . | . . . Drop 3 | . 3 . Fire 36 | . 25 11 Melee . | . . . Ram 4 | 1 3 . Kick . | . . . Crush . | . . . Escape Stasis . | . . . Rewire . | . . . Trap . | . . . Miscellaneous . | . . . Route ------- -11/Scrapyard -10/Materials (discovered 2 exits: [*Mat] / *Min) -10/Mines (discovered 1 exit: [*Mat]) History --------- Turn | Location | Event 35 | -11/Scrapyard | Discovered new exit (range 16) 74 | -11/Scrapyard | Entered Materials 237 | -10/Materials | Discovered new exit (range 13) 344 | -10/Materials | Core integrity fell below 50% 377 | -10/Materials | Discovered new exit (range 11) 411 | -10/Materials | Entered Mines 429 | -10/Mines | Lost 3 parts (1p1n1w) 432 | -10/Mines | Met a Derelict shopkeep closing up shop 552 | -10/Mines | Build established: Hauler-Mutant 591 | -10/Mines | Core integrity fell below 20% 867 | -10/Mines | Discovered new exit (range 15) 919 | -10/Mines | Destroyed by YI-UF0 with YI-UF0's Doublenader Last Messages --------------- into these parts and I'm closing up shop. No more sales from me!" 00434_ ALERT: Derelict activity detected in mines. Dispatching investigation squad. 00436_ Y4-Y07(g): "Well, take what you want I guess, I've had enough of this place!" 00459_ Acquired Adv. Treads. 00464_ Acquired Imp. Light Armor Plating. 00481_ Acquired Field Laser. 00590_ S-10 Pest destroyed. 00635_ Acquired 12 matter. 00867_ EXIT=FOUND 00875_ K-01 Serf collects debris. 00899_ Acquired 32 matter. 00900_ K-01 Serf collects debris. 00911_ Acquired Com. Wheel. 00913_ The unstable cave ceiling collapses. 00913_ Assault Rifle destroyed. 00914_ The unstable cave ceiling collapses. 00917_ Ion Engine destroyed. Map ----- +----------------------------------------------------+ | ???# #?####??## ### ##?????? ?????? | | ???# ???????## #?????? ?????? | | ???# #??????## #?????? ?????? | | ???#####??????## #?????? ?????? | | ?????????????## #?????? ?????? | | ????????###### ## #?????? ?????? | | ???????## ## ### ######?? #??????#?????? | | ?????### ##?# ###??????#????????????? | | ?????# ###??# #???????????????????? | | ?????# ###????# #???????## ?????????? | | ?????# ##?##???### ##?????? ????????? | | ?????#####??## ??## #????? ???????? | | ????????????# ?# # #? ???????? | | ????????????# #### # # # ?????????? | | ????????????# ## ## ?# #??????????? | | ?????????##### ### ##?????????? | | ???????# % ####??????? | | ???????# ?????? | | ???????# ###### ## ?????? | | ??????????????## #?# # #???????? | | ???????????????## ### ##?????????? | | ??????????????## # #?????????? | | ??????????????# #?#?????????? | | ??????????????# #???????????? | | ??????????????## # ##???????????? | | ??????????????# @ ## #????????????? | | ??????????????# ##????????????? | | ??????????????# #?????????????? | | ??????????????## ##?????????????? | | ???????????????# < ## #??????????????? | | ???????????????### ## #??????????????? | | ????????????????? ##? #??????????????? | | ?????????????????# ???#??????????????? | | ?????????????????# # ?????????????????? | | ?????????????????## ##????????????????? | | ??????????????????? #?????????????????? | | ??????????????????? ##?????????????????? | | ??????????????????? g ##??????????????????? | | ???????????????????? ##???????????????????? | | ???????????????????? #????????????????????? | | ???????????????????? ?????????????????????? | | ???????????????????????????????????????????? | | ???????????????????????????????????????????? | | ???????????????????????????????????????????? | | ???????????????????????????????????????????? | | ???????????????????????????????????????????? | | ???????????????????????????????????????????? | | ???????????????????????????????????????????? | | ???????????????????????????????????????????? | | ???????????????????????????????????????????? | +----------------------------------------------------+ Best States ------------- Heat Dissipation 25 Energy Generation 10 Energy Capacity 250 Matter Stores 300 Matter Capacity 300 Sight Range 16 Terrain Scan Density 10 Evasion (%) 42 Recoil Reduction 2 Item Schematics ----------------- None Robot Schematics ------------------ None Fabricated ------------ Nothing Alien Tech Used ----------------- None Achievements -------------- None Challenges ------------ None Game ------ Seed ThermoelectricEncryptedBank Manual? 0 Play Time 00:06:38 Cumulative 29.4 hours Start 2024.07.08 @ 02:17:06 End 2024.07.08 @ 02:21:59 Sessions 1 Manual Loads 0 Difficulty Rogue Special Mode None Game No. 71 Rogue 71 Adventurer 0 Explorer 0 Win Type - Total 0 Types 0/0/0/0/0/0/0/0/0 Lore% 23 Gallery% 29 Achievement% 21 Wizard Run 0 Options --------- Layout 1 ASCII 0 Keyboard 1 Movement Arrows Keybinds 0 Fullscreen 1 Font 24/Smallcaps Map View 50x35 Zoom Use 0% Tactical HUD 1 Map Filters NONE Filters NONE Steam 1 RUN: 49d86af9-d151-4b79-adb8-94c367d652eb